Cogmind - Beta 11.1 @@@ ROGUE MODE // 2022.12.01 @ 10:25:58 Player: sentrybuster Result: Destroyed by P-80 Master with Gamma Rifle Performance ------------- Evolutions (7) 3500 Regions Visited (13) 2600 Robots Destroyed (216) 1080 Value Destroyed (10753) 10753 Prototype IDs (20) 400 Alien Tech Used (0) 0 Bonus (4008) 4008 TOTAL SCORE: 22341 Bonus ------- High Alert Combat Kills 2206 Follower Combat Kills 127 Entered Garrisons 200 Used RIF Installer 500 Entered DSFs 500 Hacked Protovariant 500 Friendly Fire -25 Cogmind --------- Core Integrity 0/1300 Matter 51/300 Energy 25/100 System Corruption 26% Temperature Cool (50) Movement Core (200) Ox3 Location -3/Testing Parts ------- > --- POWER (2) -------- (None) > --- PROPULSION (5) --- (None) > --- UTILITY (10) ----- (None) > --- WEAPON (4) ------- Improved Matter Neutralizer > --- INVENTORY (5) ---- Micro Antimatter Reactor Advanced Sensor Array Heavy Quantum Rifle Z-bomb Delivery System Peak State ------------ > --- POWER ------------ Particle Reactor Micro Antimatter Reactor > --- PROPULSION ------- Medium Treads Heavy Treads Heavy Treads > --- UTILITY ---------- Advanced Heat Sink Advanced Heat Sink High-capacity Storage Unit Advanced Sensor Array Advanced Signal Interpreter Advanced Targeting Computer Advanced Weapon Cycler Heavy Armor Plating Experimental Focal Shield > --- WEAPON ----------- High-powered Disruptor Cannon Heavy Phase Cannon Null Cannon > --- INVENTORY -------- Micro Antimatter Reactor Medium Treads Medium Treads Compact Battery Energy Well Improved Matter Compressor Advanced Trap Scanner Advanced Sensor Array Advanced Signal Interpreter Advanced Target Analyzer Heavy Armor Plating Advanced Thermal Shield Advanced Corruption Screen Long-range Proton Cannon Cooled Proton Cannon Hypervelocity Mass Driver Fusion Bomb Launcher Z-bomb Delivery System Dirty Datajack [Rating: 148] Favorites ----------- Power Reinforced Fission Core Engine Deuterium Engine Power Core Reinforced Fission Core Reactor Micro Antimatter Reactor Propulsion Heavy Treads Treads Heavy Treads Leg Biometal Leg Wheel Armored Huge Wheel Utility Advanced Heat Sink Device Advanced Heat Sink Storage High-capacity Storage Unit Processor Advanced Targeting Computer Hackware Hacking Suite Protection Improved Medium Armor Plating Weapon Gatling Laser Energy Gun Gatling Laser Energy Cannon Advanced Plasma Cannon Ballistic Gun Hypervelocity Railgun Ballistic Cannon Heavy Assault Cannon Launcher Micro-nuke Launcher Special Weapon Mining Laser Special Melee Weapon Dirty Datajack Build | -11 -10 -9 -8 -7 -6 -6 -6 -5 -4 -4 -4 -3 -3 ------- Run | Scr Mat Mat Mat Fac Fac DSF Gar Fac Fac Upp Upp Res Tes Slots Evolved 14 | . . 2 2 2 2 . . 2 2 . . 2 . Power 1 | . . . . . . . . 1 . . . . . Propulsion 3 | . . . 1 1 . . . . 1 . . . . Utility 8 | . . 1 1 1 2 . . . 1 . . 2 . Weapon 2 | . . 1 . . . . . 1 . . . . . Parts Attached 228 | 7 4 6 20 14 1 13 3 10 23 23 . 72 32 Power 17 | 1 . . 2 . . . 1 1 3 3 . 6 . Engine 4 | 1 . . 1 . . . 1 1 . . . . . Core 3 | . . . 1 . . . . . . 2 . . . Reactor 10 | . . . . . . . . . 3 1 . 6 . Propulsion 33 | 2 . 2 1 8 . 4 . . 2 5 . 6 3 Treads 20 | . . . . 5 . 4 . . 2 2 . 4 3 Leg 12 | 2 . 2 1 3 . . . . . 2 . 2 . Wheel 1 | . . . . . . . . . . 1 . . . Hover . | . . . . . . . . . . . . . . Flight . | . . . . . . . . . . . . . . Utility 100 | 1 1 2 4 4 1 6 1 5 14 9 . 41 11 Device 60 | . 1 1 1 1 1 1 . 1 8 8 . 30 7 Storage 8 | 1 . . . 1 . 1 . 1 . 1 . 3 . Processor 13 | . . 1 1 1 . 3 . 1 2 . . 1 3 Hackware 1 | . . . 1 . . . . . . . . . . Protection 18 | . . . 1 1 . 1 1 2 4 . . 7 1 Artifact . | . . . . . . . . . . . . . . Weapon 78 | 3 3 2 13 2 . 3 1 4 4 6 . 19 18 Energy Gun 33 | 2 2 1 6 . . 3 . 3 3 4 . 4 5 Energy Cannon 21 | . . . 5 1 . . . . 1 . . 8 6 Ballistic Gun 8 | 1 . 1 . . . . . . . 1 . 4 1 Ballistic Cannon 5 | . . . . . . . 1 1 . . . . 3 Launcher 7 | . . . . 1 . . . . . . . 3 3 Special Weapon 3 | . 1 . 2 . . . . . . . . . . Impact Weapon . | . . . . . . . . . . . . . . Slashing Weapon . | . . . . . . . . . . . . . . Piercing Weapon . | . . . . . . . . . . . . . . Special Melee Weapon 1 | . . . . . . . . . . 1 . . . Unidentified Prototypes 16 | . . . . . . . . 1 1 . . 4 10 Parts Lost 51 | . . . 2 . . 5 2 2 4 12 . 10 14 Power 6 | . . . . . . . 1 . . 2 . 2 1 Propulsion 12 | . . . . . . 1 . . 1 4 . 1 5 Utility 20 | . . . 1 . . 2 . 2 2 4 . 5 4 Weapon 13 | . . . 1 . . 2 1 . 1 2 . 2 4 Highest Loss Streak 7 | . . . 2 . . 3 1 1 3 7 . 3 6 To Critical Strikes . | . . . . . . . . . . . . . . Average Slot Usage (%) 84 | . 86 98 91 99 91 85 73 72 80 74 94 88 76 Engine 2 | . 14 11 . . . . 2 10 5 . . . . Core 2 | . . . 8 7 6 6 3 . . 3 10 3 . Reactor 3 | . . . . . . . . . 4 2 . 5 8 Treads 10 | . . . . 26 26 21 13 11 14 4 10 8 12 Leg 5 | . 28 22 21 3 . . . . . 4 5 4 . Device 14 | . 1 13 8 4 11 6 6 5 12 10 21 24 20 Storage 7 | . 14 11 9 14 13 12 6 5 5 7 5 5 3 Processor 12 | . . 8 10 15 13 18 13 11 10 15 15 13 9 Protection 3 | . . . . 2 . 2 11 9 9 1 . 1 2 Energy Gun 9 | . 25 23 12 15 13 14 9 8 7 12 15 3 5 Energy Cannon 2 | . . . 5 7 6 . . . 2 . . 3 3 Ballistic Gun 3 | . . 8 7 . . . . . . 2 . 7 1 Ballistic Cannon 1 | . . . . . . . 4 4 4 . . . 4 Naked Turns 21 | . . . . . . . . . . . . . 21 Heaviest Build 130 | 11 12 18 32 71 68 85 92 107 123 110 97 118 130 Greatest Support 168 | 20 20 24 36 80 80 140 140 140 160 160 28 168 168 Greatest Overweight (x) 4 | . . . 1 1 . 1 . . . 3 3 3 4 Average Overweight (x) . | . . . . . . . . . . 2 3 . . Largest Inventory Capacity 20 | 8 8 8 8 20 20 20 20 20 20 20 20 20 20 Average Capacity 18 | 7 8 8 8 18 20 20 20 20 20 20 20 20 18 Most Carried 20 | 8 8 8 8 20 20 20 20 20 20 20 20 20 20 Average Carried 17 | 5 7 7 7 16 20 19 18 18 19 16 20 19 17 Final Capacity 20 | 8 8 8 8 20 20 20 20 20 20 20 20 20 5 Final Carried 20 | 8 8 8 8 20 20 20 17 19 18 20 20 20 4 Class Distribution -------------------- 21% | Scavenger-Gunner 20% | Scavenger-Mutant 20% | Mutant 9% | Gunner 8% | Scavenger-Assassin 7% | Tank 6% | Skirmisher 4% | Scavenger-Tank Dominant Class ---------------- Mutant | -10/Materials Skirmisher | -9/Materials Skirmisher | -8/Materials Mutant | -7/Factory Mutant | -6/Factory Mutant | -6/DSF Gunner | -6/Garrison Scavenger-Gunner | -5/Factory Tank | -4/Factory Scavenger-Gunner | -4/Upper Caves Scavenger-Gunner | -4/Upper Caves Scavenger-Mutant | -3/Research Scavenger-Mutant | -3/Testing Resources | -11 -10 -9 -8 -7 -6 -6 -6 -5 -4 -4 -4 -3 -3 ----------- Run | Scr Mat Mat Mat Fac Fac DSF Gar Fac Fac Upp Upp Res Tes Matter Collected 5882 | 272 . 124 238 144 43 117 167 619 662 273 . 2395 828 Remotely . | . . . . . . . . . . . . . . Salvage Created 11703 | 140 . 260 401 864 . 502 232 923 931 1209 . 5004 1237 Parts 522 | 11 . 23 23 34 . 25 5 29 28 33 . 256 55 Haulers Intercepted 5 | . . . . 1 . . . 1 1 . . . 2 Recyclers Shooed 5 | . . . . 1 . . . . 1 . . 3 . Parts Field Recycled . | . . . . . . . . . . . . . . Retrieved Matter . | . . . . . . . . . . . . . . Parts Self-Destructed 29 | . . . . . . . . . . 29 . . . Prevented . | . . . . . . . . . . . . . . Kills | -11 -10 -9 -8 -7 -6 -6 -6 -5 -4 -4 -4 -3 -3 ------- Run | Scr Mat Mat Mat Fac Fac DSF Gar Fac Fac Upp Upp Res Tes Combat Hostiles Destroyed 161 | . . 5 8 12 . 11 6 11 14 15 . 55 24 Guns 91 | . . 5 4 5 . 11 1 6 6 14 . 38 1 Cannons 40 | . . . 4 2 . . 5 5 8 . . 5 11 AOE 23 | . . . . 2 . . . . . . . 10 11 Classes Destroyed 22 | 2 . 5 1 4 . 3 1 . . 1 . 1 4 Worker 9 | . . . . . . . . . . . . 7 2 Builder 16 | . . 1 . 1 . . . 2 2 . . 6 4 Tunneler 4 | 3 . . . 1 . . . . . . . . . Hauler 5 | . . . . 1 . . . 1 1 . . . 2 Recycler 14 | 1 . . . 2 . . . 3 2 . . 5 1 Mechanic 2 | . . . . . . . . . . . . . 2 Operator 1 | . . 1 . . . . . . . . . . . Watcher 8 | . . 1 . 1 . . . . 1 . . 3 2 Swarmer 15 | . . . . . . 4 . 5 2 3 . 1 . Grunt 61 | . . 4 2 6 . 3 3 5 1 6 . 23 8 Brawler 5 | . . . . 1 . . . . . 1 . 2 1 Duelist 4 | . . . . 1 . . . . . 1 . . 2 Researcher 3 | . . . . . . . . . . . . . 3 Sentry 23 | . . 1 5 3 . . . 1 3 2 . 8 . Specialist 4 | . . . . . . 2 . . . . . 2 . Hunter 11 | . . . 1 . . 1 . . . 1 . 6 2 Programmer 27 | . . . . 1 . . 2 . 7 . . 13 4 Heavy 2 | . . . . . . 1 . . 1 . . . . Behemoth 1 | . . . . . . . 1 . . . . . . Alpha 7 1 | . . . . . . . . . . . . . 1 Assembled 6 | . . . . . . . . . . . . . 6 Mutant 1 | . . . . . . . . . . 1 . . . Best Kill Streak 19 | 3 . 3 2 4 . 4 5 7 3 3 . 16 19 Combat Bots Only 10 | . . 3 2 4 . 4 5 7 3 3 . 10 9 Max Kills in Single Turn 7 | 1 . 1 1 2 . 2 1 2 2 1 . 6 7 Gunslinging 1 | . . . . . . . . . . . . 1 . Exploded 6 | . . . . 1 . . . . . . . 3 6 Melee . | . . . . . . . . . . . . . . Uniques/NPCs Destroyed . | . . . . . . . . . . . . . . Combat | -11 -10 -9 -8 -7 -6 -6 -6 -5 -4 -4 -4 -3 -3 -------- Run | Scr Mat Mat Mat Fac Fac DSF Gar Fac Fac Upp Upp Res Tes Damage Taken 15201 | . . 150 347 717 . 968 695 645 2169 2186 . 3302 4022 Core 2172 | . . 11 61 103 . 266 . 36 41 352 . 294 1008 Absorbed by Shields 697 | . . . . . . . . . . 39 . 658 . Reduced by Siege Mode 173 | . . . . . . . 20 . 61 . . 69 23 Redirected to Shielding 105 | . . . . . . . . . 105 . . . . Regen/Repaired (Parts) 231 | . . . . . . . . 161 70 . . . . Core Remaining (%) 87 | 100 100 97 88 85 . . 68 96 . . 65 . . Volleys Fired 570 | 10 7 17 31 40 . 20 22 37 59 62 . 209 56 Largest 4 | 2 1 3 3 3 . 3 3 3 3 4 . 4 4 Hottest 326 | 80 100 145 201 223 . 210 210 205 273 283 . 273 326 Shots Fired 1197 | 16 7 43 67 65 . 43 45 83 139 137 . 462 90 Gun 828 | 16 . 43 39 40 . 43 27 50 60 134 . 345 31 Cannon 342 | . . . 25 24 . . 18 33 79 3 . 105 55 Launcher 17 | . . . . 1 . . . . . . . 12 4 Special 10 | . 7 . 3 . . . . . . . . . . Kinetic 416 | 2 . 11 13 . . . 18 33 48 14 . 243 34 Thermal 662 | 10 7 15 37 40 . 40 23 30 90 123 . 200 47 Explosive 17 | . . . . 1 . . . . . . . 12 4 Electromagnetic 102 | 4 . 17 17 24 . 3 4 20 1 . . 7 5 Robot Hit Streak 52 | 4 . 7 6 18 . 52 21 38 32 15 . 21 16 Robot Miss Streak 8 | 2 . 8 2 3 . 2 2 2 3 2 . 5 5 Penetration Max 2 | . . . . . . . . . . . . 2 1 Secondary Targets 9 | . . . . 1 . 4 . . . 2 . 2 . Max Gunslinging Chain 1 | . . . . 1 . 1 . . . 1 . 1 . Shots Hit Robots 797 | 11 . 24 34 59 . 41 45 62 105 102 . 271 43 Core Hits 493 | 6 . 22 15 39 . 39 18 48 47 51 . 153 55 Critical Kills 43 | . . . . . . . . . . 1 . 36 6 Critical Parts Destroyed 63 | . . 1 . . . . . . . . . 58 4 Critical Strikes 127 | . . 1 1 . . . 1 3 4 3 . 101 13 Burn 3 | . . . 1 . . . . . . 2 . . . Meltdown 1 | . . . . . . . . . . . . . 1 Destroy 113 | . . 1 . . . . . . 1 1 . 101 9 Blast 9 | . . . . . . . 1 3 3 . . . 2 Corrupt 1 | . . . . . . . . . . . . . 1 Melee Attacks 1 | . . . . . . . . . . 1 . . . Impact . | . . . . . . . . . . . . . . Slashing . | . . . . . . . . . . . . . . Piercing 1 | . . . . . . . . . . 1 . . . Sneak Attacks . | . . . . . . . . . . . . . . Combat Hostiles . | . . . . . . . . . . . . . . Follow-up Attacks . | . . . . . . . . . . . . . . Damage Inflicted 29279 | 123 . 363 668 1685 . 1082 1501 1853 3775 2610 . 8242 7377 Guns 12609 | 123 . 363 360 902 . 1082 624 846 1476 2533 . 3761 539 Cannons 7598 | . . . 281 561 . . 877 1007 2272 72 . 1406 1122 Explosions 9043 | . . . 27 222 . . . . 27 . . 3053 5714 Melee 1 | . . . . . . . . . . 1 . . . Ramming 28 | . . . . . . . . . . 4 . 22 2 Kinetic 6212 | 6 . 131 145 . . . 877 1007 1504 292 . 1734 516 Thermal 13002 | 77 . 118 299 1124 . 1066 611 694 2271 2313 . 3392 1037 Explosive 8569 | . . . . . . . . . . . . 2855 5714 Electromagnetic 1467 | 40 . 114 224 561 . 16 13 152 . . . 239 108 Impact . | . . . . . . . . . . . . . . Slashing . | . . . . . . . . . . . . . . Piercing 1 | . . . . . . . . . . 1 . . . Highest Corruption 24 | . . . . . . . 1 . 7 7 7 10 24 Average Corruption 5 | . . . . . . . 1 . 1 7 7 2 12 Corruption Purged . | . . . . . . . . . . . . . . Corruption Blocked . | . . . . . . . . . . . . . . Effects 120 | . . . . . . . 1 . 13 40 1 27 38 Message Errors 32 | . . . . . . . . . 5 12 . 7 8 Matter Fused 23 | . . . . . . . 1 . 4 6 1 7 4 Heat Flow Errors 12 | . . . . . . . . . 1 3 . . 8 Energy Discharges 21 | . . . . . . . . . 2 9 . 5 5 Data Loss (minor) 7 | . . . . . . . . . . 4 . 2 1 Data Loss (major) 6 | . . . . . . . . . 1 2 . 2 1 Misfires 5 | . . . . . . . . . . 1 . 1 3 Alerts 4 | . . . . . . . . . . 1 . . 3 Misdirections 3 | . . . . . . . . . . . . . 3 Weapon Failures 7 | . . . . . . . . . . 2 . 3 2 Overload Shots . | . . . . . . . . . . . . . . Overflow Damage 1814 | . . . . . . . 93 28 227 . . 218 1248 Projectiles 404 | . . . . . . . 93 28 227 . . 45 11 Explosions 1410 | . . . . . . . . . . . . 173 1237 Melee . | . . . . . . . . . . . . . . Knockbacks 27 | . . . . . . . 4 9 8 1 . . 5 Impact 1 | . . . . . . . . . . 1 . . . Kinetic 21 | . . . . . . . 3 6 8 . . . 4 Secondary 5 | . . . . . . . 1 3 . . . . 1 Self-Inflicted Damage 519 | . . . . 52 . . . . 43 1 . 51 372 Shots 6 | . . . . 1 . . . . 1 . . 1 3 Rammed 6 | . . . . . . . . . . 2 . 3 1 Targets Rammed 6 | . . . . . . . . . . 2 . 3 1 Kicked . | . . . . . . . . . . . . . . Crushed . | . . . . . . . . . . . . . . Highest Temperature 515 | 72 60 194 339 418 . 48 193 466 464 515 . 198 468 Average Temperature 113 | 33 22 68 114 157 . 19 66 113 110 165 . 72 160 Received Heat Transfer 2311 | . . 51 126 291 . 243 213 172 84 586 . 371 174 Effects 19 | . . . . . . . . 2 3 10 . . 4 Shutdowns 8 | . . . . . . . . 1 2 2 . . 3 Energy Bleed 3 | . . . . . . . . . . 2 . . 1 Interference 1 | . . . . . . . . . . 1 . . . Short Circuit 2 | . . . . . . . . 1 1 . . . . Damage (minor) 3 | . . . . . . . . . . 3 . . . Damage (major) 2 | . . . . . . . . . . 2 . . . Siege Activations 9 | . . . . . . . 1 . 2 . . 5 1 Total Turns 194 | . . . . . . . 19 . 90 . . 78 7 Longest Duration 47 | . . . . . . . 19 . 47 . . 24 7 Robots Corrupted 3 | . . . . 2 . . . . . . . 1 . Combat Hostiles 3 | . . . . 2 . . . . . . . 1 . Parts Fried 10 | . . . 2 6 . . . . . . . 1 1 Impact Corruptions 1 | . . . . . . . . 1 . . . . . Robots Melted 4 | . . . . 1 . . . . . 1 . 1 1 Combat Hostiles 4 | . . . . 1 . . . . . 1 . 1 1 Parts Melted 27 | . . . . 3 . 2 3 . 9 5 . 4 1 Heat Transferred 21402 | 175 . 155 642 2325 . 2425 1250 1575 3608 4262 . 4082 903 Parts Sabotaged . | . . . . . . . . . . . . . . Parts Stolen . | . . . . . . . . . . . . . . Parts Stripped . | . . . . . . . . . . . . . . Power Chain Reactions 4 | . . . 1 2 . . . . . . . 1 . Missiles Intercepted . | . . . . . . . . . . . . . . Alert | -11 -10 -9 -8 -7 -6 -6 -6 -5 -4 -4 -4 -3 -3 ------- Run | Scr Mat Mat Mat Fac Fac DSF Gar Fac Fac Upp Upp Res Tes Peak Influence 1443 | 20 43 270 212 328 76 278 400 380 193 . . 1443 1392 Initial 811 | . 13 17 113 95 76 53 208 210 128 . . 6 811 Average 291 | 6 23 123 127 180 76 124 286 239 111 . . 290 1163 Maximum Alert Level 4 | . . 1 1 1 . 1 2 1 . . . 4 4 Low Security (%) 56 | 100 100 73 98 60 100 93 2 4 100 . . 52 . Level 1 26 | . . 26 1 39 . 6 74 95 . . . 28 . Level 2 3 | . . . . . . . 22 . . . . 9 . Level 3 3 | . . . . . . . . . . . . 1 33 Level 4 8 | . . . . . . . . . . . . 8 66 Level 5 . | . . . . . . . . . . . . . . High Security . | . . . . . . . . . . . . . . Max Security . | . . . . . . . . . . . . . . Squads Dispatched 39 | . 1 3 1 2 . 2 . 1 10 . . 10 9 Investigation . | . . . . . . . . . . . . . . Extermination 9 | . . . . 1 . . . . 3 . . 4 1 Reinforcement 21 | . 1 3 1 1 . 2 . 1 3 . . 5 4 Assault 5 | . . . . . . . . . . . . 1 4 Garrison 4 | . . . . . . . . . 4 . . . . Intercept . | . . . . . . . . . . . . . . Searches Triggered . | . . . . . . . . . . . . . . Construction Impeded 1 | . . . . . . . . . . . . 1 . Haulers Reinforced 5 | . . . . . . . . 1 1 . . 2 1 Active Scanning Responses . | . . . . . . . . . . . . . . Cargo Convoy Interrupts . | . . . . . . . . . . . . . . Stealth | -11 -10 -9 -8 -7 -6 -6 -6 -5 -4 -4 -4 -3 -3 --------- Run | Scr Mat Mat Mat Fac Fac DSF Gar Fac Fac Upp Upp Res Tes Distress Signals 11 | . 1 . . . . . . . 3 . . 6 1 Communications Jammed . | . . . . . . . . . . . . . . Distress Signals . | . . . . . . . . . . . . . . Times Spotted 222 | . . 11 9 13 . 11 7 17 22 21 . 74 37 Peak Tracking Total 9 | . . 3 3 6 . 4 6 7 3 7 . 9 9 Tactical Retreats 10 | . . 1 . . . . 2 1 1 2 . 2 1 Traps | -11 -10 -9 -8 -7 -6 -6 -6 -5 -4 -4 -4 -3 -3 ------- Run | Scr Mat Mat Mat Fac Fac DSF Gar Fac Fac Upp Upp Res Tes Traps Triggered 5 | . . 1 . . . . . . 2 . . 1 1 Indirectly . | . . . . . . . . . . . . . . Trap Hack Attempts . | . . . . . . . . . . . . . . Triggered . | . . . . . . . . . . . . . . Disarmed . | . . . . . . . . . . . . . . Reprogrammed . | . . . . . . . . . . . . . . Reused . | . . . . . . . . . . . . . . Traps Extracted . | . . . . . . . . . . . . . . Installed . | . . . . . . . . . . . . . . Triggered . | . . . . . . . . . . . . . . Machines | -11 -10 -9 -8 -7 -6 -6 -6 -5 -4 -4 -4 -3 -3 ---------- Run | Scr Mat Mat Mat Fac Fac DSF Gar Fac Fac Upp Upp Res Tes Machines Disabled 30 | . . . . 1 . 1 . 1 2 1 . 8 16 Max in Single Turn 2 | . . . . 1 . 1 . 1 2 1 . 2 2 Garrison Access 4 | . . . . . . . . 1 1 . . 1 1 Machines Sabotaged . | . . . . . . . . . . . . . . Garrisons Compromised . | . . . . . . . . . . . . . . Overloaded Fab Kills . | . . . . . . . . . . . . . . Hacking | -11 -10 -9 -8 -7 -6 -6 -6 -5 -4 -4 -4 -3 -3 --------- Run | Scr Mat Mat Mat Fac Fac DSF Gar Fac Fac Upp Upp Res Tes Machines Accessed 30 | . 2 2 2 . 1 . . 5 9 . . 6 3 Terminals 22 | . 2 2 1 . 1 . . 2 7 . . 5 2 Fabricators 1 | . . . . . . . . 1 . . . . . Repair Stations 2 | . . . . . . . . 1 1 . . . . Recycling Units . | . . . . . . . . . . . . . . Scanalyzers 1 | . . . 1 . . . . . . . . . . Garrison Access 4 | . . . . . . . . 1 1 . . 1 1 Total Hacks 58 | . 6 4 4 . 2 . . 7 18 . . 9 8 Successful 32 | . 5 3 2 . 1 . . 6 10 . . 3 2 Failed 26 | . 1 1 2 . 1 . . 1 8 . . 6 6 Catastrophic 3 | . . . . . . . . . 1 . . 1 1 Database Lockouts . | . . . . . . . . . . . . . . Manual 26 | . 6 4 2 . . . . 1 9 . . 4 . Terminals 47 | . 6 4 2 . 2 . . 3 15 . . 8 7 Fabricators 1 | . . . . . . . . 1 . . . . . Repair Stations 4 | . . . . . . . . 2 2 . . . . Recycling Units . | . . . . . . . . . . . . . . Scanalyzers 2 | . . . 2 . . . . . . . . . . Garrison Access 4 | . . . . . . . . 1 1 . . 1 1 Terminal Hacks 13 | . 2 1 . . 1 . . 2 5 . . 1 1 Record 1 | . . . . . . . . . . . . 1 . Open DSF 2 | . . . . . 1 . . 1 . . . . . Terminal Index 4 | . 1 1 . . . . . 1 1 . . . . Unreport Threat 1 | . . . . . . . . . 1 . . . . Locate Traps 1 | . . . . . . . . . 1 . . . . Hauler Manifests 2 | . 1 . . . . . . . 1 . . . . Zone Layout 1 | . . . . . . . . . 1 . . . . Protovariant Controls 1 | . . . . . . . . . . . . . 1 Fabricator Hacks 1 | . . . . . . . . 1 . . . . . Network Status 1 | . . . . . . . . 1 . . . . . Repair Station Hacks 4 | . . . . . . . . 2 2 . . . . Scan Component 2 | . . . . . . . . 1 1 . . . . Repair 2 | . . . . . . . . 1 1 . . . . Recycling Unit Hacks . | . . . . . . . . . . . . . . Scanalyzer 2 | . . . 2 . . . . . . . . . . Insert Component 1 | . . . 1 . . . . . . . . . . Analyze 1 | . . . 1 . . . . . . . . . . Garrison Access Hacks 4 | . . . . . . . . 1 1 . . 1 1 Seal Access 4 | . . . . . . . . 1 1 . . 1 1 Unauthorized Hacks 8 | . 3 2 . . . . . . 2 . . 1 . Terminals 8 | . 3 2 . . . . . . 2 . . 1 . Track 4 | . 2 2 . . . . . . . . . . . Botnet 1 | . . . . . . . . . 1 . . . . Operators 3 | . 1 . . . . . . . 1 . . 1 . Fabricators . | . . . . . . . . . . . . . . Repair Stations . | . . . . . . . . . . . . . . Recycling Units . | . . . . . . . . . . . . . . Scanalyzers . | . . . . . . . . . . . . . . Garrison Access . | . . . . . . . . . . . . . . Data Cores Recovered . | . . . . . . . . . . . . . . Used . | . . . . . . . . . . . . . . Hacking Detections 23 | . 2 2 2 . 1 . . 3 6 . . 5 2 Full Trace Events . | . . . . . . . . . . . . . . Feedback Events . | . . . . . . . . . . . . . . Feedback Blocked . | . . . . . . . . . . . . . . Robot Schematics Acquired 1 | . . . . . . . . . . . . . 1 Robots Built . | . . . . . . . . . . . . . . Authchips . | . . . . . . . . . . . . . . Time . | . . . . . . . . . . . . . . Total Robot Build Rating . | . . . . . . . . . . . . . . Part Schematics Acquired 5 | . . . 1 . . . . . . . . . 4 Parts Built . | . . . . . . . . . . . . . . Authchips . | . . . . . . . . . . . . . . Time . | . . . . . . . . . . . . . . Total Part Build Rating . | . . . . . . . . . . . . . . Parts Repaired 2 | . . . . . . . . 1 1 . . . . Time 63 | . . . . . . . . 19 44 . . . . Parts Recycled . | . . . . . . . . . . . . . . Recycled Matter . | . . . . . . . . . . . . . . Retrieved Matter . | . . . . . . . . . . . . . . Retrieved Components . | . . . . . . . . . . . . . . Parts Scanalyzed 1 | . . . 1 . . . . . . . . . . Part Schematics Acquired 1 | . . . 1 . . . . . . . . . . Parts Damaged . | . . . . . . . . . . . . . . Bothacking | -11 -10 -9 -8 -7 -6 -6 -6 -5 -4 -4 -4 -3 -3 ------------ Run | Scr Mat Mat Mat Fac Fac DSF Gar Fac Fac Upp Upp Res Tes Used RIF Installer 1 | . . . . . . . 1 . . . . . . Robots Hacked . | . . . . . . . . . . . . . . Non-combat . | . . . . . . . . . . . . . . Combat . | . . . . . . . . . . . . . . Robot Hacks Applied . | . . . . . . . . . . . . . . Relay Couplers Released 1 | . . . . . . . . . . . . . 1 Machine Destruction 1 | . . . . . . . . . . . . . 1 Fabnet Peak Effective % . | . . . . . . . . . . . . . . Robots Rewired 2 | . . . . . . . . . . 2 . . . Allies Hacked . | . . . . . . . . . . . . . . Hacks Repelled . | . . . . . . . . . . . . . . Allies | -11 -10 -9 -8 -7 -6 -6 -6 -5 -4 -4 -4 -3 -3 -------- Run | Scr Mat Mat Mat Fac Fac DSF Gar Fac Fac Upp Upp Res Tes Total Allies 3 | . . . . . . . . . . 3 . . . Largest Group 2 | . . . . . . . . . . 2 . . . Highest-Rated Group 103 | . . . . . . . . . . 103 . . . Highest-Rated Ally 56 | . . . . . . . . . . 56 . . . Total Orders . | . . . . . . . . . . . . . . Ally Attacks 17 | . . . . . . . . . . 17 . . . Total Damage 435 | . . . . . . . . . . 435 . . . Kills 3 | . . . . . . . . . . 3 . . . Allies Corrupted . | . . . . . . . . . . . . . . Allies Melted . | . . . . . . . . . . . . . . Intel | -11 -10 -9 -8 -7 -6 -6 -6 -5 -4 -4 -4 -3 -3 ------- Run | Scr Mat Mat Mat Fac Fac DSF Gar Fac Fac Upp Upp Res Tes Robot Analysis Total . | . . . . . . . . . . . . . . Derelict Logs Recovered 2 | . . . . . . . . . . 2 . . . Drone Launches . | . . . . . . . . . . . . . . Drone Recoveries . | . . . . . . . . . . . . . . Exploration | -11 -10 -9 -8 -7 -6 -6 -6 -5 -4 -4 -4 -3 -3 ------------- Run | Scr Mat Mat Mat Fac Fac DSF Gar Fac Fac Upp Upp Res Tes Turns Passed 10514 | 111 252 390 656 992 120 229 279 969 1473 1215 36 2915 877 Spaces Moved 4861 | 58 178 234 287 480 70 77 119 388 643 673 12 1226 416 Core 41 | 5 . . . . . . . . . . . . 36 Treads 3044 | . . . . 404 70 77 119 388 643 89 . 874 380 Legs 828 | 53 178 234 287 76 . . . . . . . . . Wheels 948 | . . . . . . . . . . 584 12 352 . Hover . | . . . . . . . . . . . . . . Flight . | . . . . . . . . . . . . . . Fastest Speed 50 | 50 120 90 90 100 170 160 160 160 160 130 145 145 50 Average Speed 149 | 113 120 115 100 160 170 171 160 160 162 140 145 155 167 Slowest Speed 250 | 120 120 120 180 183 170 250 160 160 163 245 145 240 250 Overloaded Moves . | . . . . . . . . . . . . . . Propulsion Burnouts . | . . . . . . . . . . . . . . Robots Hopped . | . . . . . . . . . . . . . . Cave-ins Triggered . | . . . . . . . . . . . . . . Exploration Rate (%) 28 | 4 33 23 23 12 3 70 35 12 24 79 3 34 50 Regions Visited 13 Branch Regions 3 Pre-discovered Areas . | . . . . . . . . . . . . . . Known Exits Taken 6 | . . . . . 1 . . 1 1 1 1 1 . Unknown Exits Taken 5 | 1 1 1 1 1 . . . . . . . . . Scrap Searched 2 | . . . . . . . . . . 2 . . . Spaces Dug 102 | . 7 . 12 10 . . . 8 9 5 . 43 8 Terrain Destroyed 446 | . 7 . 20 20 . . 2 14 48 15 . 196 124 Melee . | . . . . . . . . . . . . . . Projectile 153 | . 7 . 13 . . . 2 14 34 15 . 52 16 AOE 286 | . . . 7 20 . . . . 14 . . 137 108 Terrain Rammed . | . . . . . . . . . . . . . . Walls Destroyed . | . . . . . . . . . . . . . . Machines Disabled . | . . . . . . . . . . . . . . Actions | -11 -10 -9 -8 -7 -6 -6 -6 -5 -4 -4 -4 -3 -3 --------- Run | Scr Mat Mat Mat Fac Fac DSF Gar Fac Fac Upp Upp Res Tes Total 7096 | 83 195 321 590 630 71 130 151 643 932 826 31 1940 553 Wait 1179 | 1 1 54 232 77 1 . 6 201 177 35 20 357 17 Move 4847 | 57 177 233 286 479 69 76 117 387 642 672 11 1225 416 Hop . | . . . . . . . . . . . . . . Pick Up 100 | 8 3 3 7 16 . 5 1 2 14 13 . 24 4 Fast Attach 93 | 6 1 4 9 2 1 8 . 4 8 10 . 26 14 Attach 51 | . . . 2 2 . 4 3 5 8 9 . 8 10 Detach 38 | . . 1 2 1 . 3 1 5 3 3 . 9 10 Swap 84 | 1 3 2 9 10 . 1 . 1 7 4 . 38 8 Drop 113 | . 3 7 12 3 . 13 1 1 14 4 . 41 14 Fire 570 | 10 7 17 31 40 . 20 22 37 59 62 . 209 56 Melee 1 | . . . . . . . . . . 1 . . . Ram 2 | . . . . . . . . . . 1 . . 1 Kick . | . . . . . . . . . . . . . . Crush 4 | . . . . . . . . . . 1 . 3 . Escape Stasis . | . . . . . . . . . . . . . . Rewire 14 | . . . . . . . . . . 11 . . 3 Trap . | . . . . . . . . . . . . . . Miscellaneous . | . . . . . . . . . . . . . . Route ------- -11/Scrapyard -10/Materials -9/Materials -8/Materials -7/Factory -6/Factory -6/DSF -6/Garrison -5/Factory (discovered 2 exits: *Fac / *Upp) -4/Factory -4/Upper Caves -4/Upper Caves -3/Research -3/Testing History --------- Turn | Location | Event 4 | -11/Scrapyard | Discovered new exit (range 16) 112 | -11/Scrapyard | Entered Materials 317 | -10/Materials | Discovered new exit (range 16) 328 | -10/Materials | Build established: Mutant 364 | -10/Materials | Entered another Materials area 364 | -9/Materials | Evolved 2 slots: Utility x1, Weapon x1 711 | -9/Materials | Build established: Skirmisher 726 | -9/Materials | Discovered new exit (range 13) 754 | -9/Materials | Entered another Materials area 754 | -8/Materials | Evolved 2 slots: Propulsion x1, Utility x1 1355 | -8/Materials | Discovered new exit (range 12) 1410 | -8/Materials | Entered Factory 1410 | -7/Factory | Evolved 2 slots: Propulsion x1, Utility x1 1805 | -7/Factory | Build established: Mutant 2321 | -7/Factory | Discovered new exit (range 8) 2402 | -7/Factory | Entered another Factory area 2402 | -6/Factory | Evolved 2 slots: Utility x2 2522 | -6/Factory | Identified exit to DSF 2522 | -6/Factory | Entered DSF 2553 | -6/DSF | Additional patrols routed to DSF 2584 | -6/DSF | Lost 3 parts (2u1w) 2659 | -6/DSF | Found Prototype Device 2706 | -6/DSF | Discovered new exit (range 14) 2751 | -6/DSF | Entered Garrison 2759 | -6/Garrison | Installed Relay Interface Framework 2876 | -6/Garrison | Spotted B-75 Beast 2884 | -6/Garrison | Triggered checkpoint 2908 | -6/Garrison | Destroyed B-75 Beast 2943 | -6/Garrison | Build established: Gunner 3014 | -6/Garrison | Discovered new exit (range 10) 3030 | -6/Garrison | Entered Factory 3030 | -5/Factory | Evolved 2 slots: Power x1, Weapon x1 3447 | -5/Factory | Repaired Hvy. Assault Cannon 3836 | -5/Factory | Destroyed 7 combat bots 3904 | -5/Factory | Discovered new exit (range 12) 3942 | -5/Factory | Discovered new exit (range 9) 3977 | -5/Factory | Identified exit to Upper Caves 3998 | -5/Factory | Identified exit to Factory 3999 | -5/Factory | Entered another Factory area 3999 | -4/Factory | Evolved 2 slots: Propulsion x1, Utility x1 4187 | -4/Factory | Repaired Gatling Laser 4631 | -4/Factory | Garrison activated, responded to threat 4686 | -4/Factory | Found Prototype Device 4686 | -4/Factory | Identified Exp. ECM Suite 4780 | -4/Factory | Garrison activated, responded to threat 4906 | -4/Factory | Build established: Tank 5206 | -4/Factory | Discovered new exit (range 4) 5215 | -4/Factory | Identified exit to Upper Caves 5421 | -4/Factory | Lost 3 parts (2u1w) 5472 | -4/Factory | Entered Upper Caves 5477 | -4/Upper Caves | Learned 4 Research zone layouts 5701 | -4/Upper Caves | Lost 7 parts (1p2n3u1w) 5945 | -4/Upper Caves | Attracted the attention of an 0b10 outpost 6272 | -4/Upper Caves | Build established: Scavenger-Gunner 6358 | -4/Upper Caves | Attacked by a delusional Derelict stockpiling parts 6427 | -4/Upper Caves | Attracted the attention of an 0b10 checkpoint 6619 | -4/Upper Caves | Identified exit to Upper Caves 6687 | -4/Upper Caves | Entered another Upper Caves area 6712 | -4/Upper Caves | Discovered new exit (range 9) 6722 | -4/Upper Caves | Identified exit to Research 6723 | -4/Upper Caves | Entered Research 6723 | -3/Research | Evolved 2 slots: Utility x2 7071 | -3/Research | Build established: Scavenger-Assassin 8243 | -3/Research | Found Prototype Device 8243 | -3/Research | Identified Exp. Focal Shield 8417 | -3/Research | Spotted B-86 Titan 8439 | -3/Research | Found Fusion Bomb Launcher 8540 | -3/Research | Build established: Scavenger-Mutant 9121 | -3/Research | Destroyed 7 combat bots 9334 | -3/Research | Lost 3 parts (1p2u) 9367 | -3/Research | System corruption reached 10% 9393 | -3/Research | Destroyed 10 combat bots 9397 | -3/Research | Lost 3 parts (1n1u1w) 9473 | -3/Research | First assault squad dispatched 9592 | -3/Research | Discovered new exit (range 16) 9636 | -3/Research | Identified exit to Testing 9638 | -3/Research | Entered Testing 9685 | -3/Testing | Found Prototype Launcher 9685 | -3/Testing | Identified Z-bomb Delivery System 9722 | -3/Testing | Found Prototype Processor 9722 | -3/Testing | Identified Exp. Melee Analysis Suite 9783 | -3/Testing | Found Prototype Energy Cannon 9783 | -3/Testing | Identified Null Cannon 9836 | -3/Testing | Found Prototype Energy Cannon 9836 | -3/Testing | Identified Hpw. Disruptor Cannon 9888 | -3/Testing | First assault squad dispatched 9902 | -3/Testing | Protovariant out of control (PG-9MIHDF9WQK) 9902 | -3/Testing | Unleashed a protovariant (PG-9MIHDF9WQK) 9953 | -3/Testing | Spotted Alpha 7 9960 | -3/Testing | Destroyed Alpha 7 10274 | -3/Testing | Lost 5 parts (2n3u) 10428 | -3/Testing | Assembled infested ambush trap array 10464 | -3/Testing | Destroyed 9 combat bots 10475 | -3/Testing | Core integrity fell below 50% 10478 | -3/Testing | Lost 6 parts (1p2n1u2w) 10479 | -3/Testing | Released all parts (8) 10506 | -3/Testing | Core integrity fell below 20% 10515 | -3/Testing | Destroyed by P-80 Master with Gamma Rifle Last Messages --------------- 10484_ U-05 Engineer lays Concrete. 10485_ Reaction Chamber disabled. 10486_ K-01 Serf collects debris. 10486_ U-05 Engineer builds a Wall. 10487_ Null Cannon destroyed. 10488_ Acquired 13 matter. 10501_ Reaction Chamber disabled. 10503_ Slammed into P-80 Master. 10506_ System corrupted: Matter fused (-9). 10506_ C-55 Analyst calibrates the Catalytron. 10506_ Acquired Prototype Energy Cannon. 10506_ Identified Imp. Matter Neutralizer. 10506_ C-30 ARC bursts open, deploying its payload. 10506_ D-63 Destroyer unfolds itself. 10508_ System corrupted: Imp. Matter Neutralizer failed to cycle. 10511_ C-55 Analyst calibrates the Catalytron. 10512_ Sml. Battery melted. 10512_ P-80 Master destroyed. 10514_ The unstable cave ceiling collapses. 10515_ C-55 Analyst calibrates the Catalytron. Map ----- +----------------------------------------------------+ | ?????????????????????????????????????????????????? | | ?????????????????????????????????????????????????? | | ?????????????????????????????????????????????????? | | ?????????????????????????????????????????????????? | | ???????#########?????????????????????????????????? | | ???????# #?????????????????????????????????? | | ???????# #?????????????????????????????????? | | #??????# #?????????????????????????????????? | | #??????# #?????????????????????????????????? | | #??????# ##########???????????????????????????? | | #??????# # ????????????????????????????? | | ######## # """""?????????????????????????????? | | # + """""?????????????????????????????? | | +!== # """""?????????????????????????????? | | # ! # #???????????????????????????? | | #![ # #???????????????????????????? | | # %[######] "" "" #???????????????????????????? | | # %[##???# ""T"" #???????????????????????????? | | # %###??#! """ #???????????????????????????? | | #! ###############???????????????????????????? | | # [ # [ #????????????????????????????? | | [!= """ """ #????????????????????????????? | | ### # """ """ ###??????????????????????????? | | #?# # """ """ # ###????????????????????????? | | ??# # c [ # ########?????????????????? | | ??# ######!!] # @ [%!#?????????????????? | | ### !%[!!! g =p #?????????????????? | | # =%%!!] """ """ #?????????????????? | | # !]!!]* # """p"" #?????????????????? | | # !!! " "" #?????????????????? | | ###### d= #?????????????????? | | #????# #! % #?????????????????? | | #???## # ! [ #?????????????????? | | #?? % #########?????????????????? | | #? * ###?????????????????????????? | | "# #???????????????????????????? | | T# #???????????????????????????? | | "# #### ######???????????????????????????? | | # ##### ###??????????????????????????????? | | ### ##########????????????????????????????????? | | ??????????????????????????????????? | | ??????????????????????????????????? | | ?????????????????????????????????? | | ??????????????????????????????????? | | ########????????????????????????????????????? | | #???????????????????????????????????????????? | | #???????????????????????????????????????????? | | #### #???????????????????????????????????????????? | | ???? #???????????????????????????????????????????? | | ?????#???????????????????????????????????????????? | +----------------------------------------------------+ Best States ------------- Heat Dissipation 103 Coolant Potential 100 Energy Generation 39 Energy Capacity 740 Matter Stores 300 Matter Capacity 300 Sight Range 20 Robot Scan Range 18 Terrain Scan Density 10 Corruption Block 20 Armor Coverage 1500 Resistance: KI 30 Resistance: TH 30 Propulsion Shielding 66 Weapon Cycling 25 Evasion (%) 57 Targeting Accuracy 22 Target Analysis 8 Armor Integrity Analysis 40 Recoil Reduction 5 Offensive Hacking 10 Authchip Count 1 Item Schematics ----------------- Hcp. Storage Unit | -8/Materials | Scanalyzed Stealth Drone Bay | -3/Testing | Archive Cld. Antigrav System | -3/Testing | Archive Thunder Hammer | -3/Testing | Archive Cld. Antimatter Reactor | -3/Testing | Archive Robot Schematics ------------------ W-44 Eye | -3/Testing | Archive Fabricated ------------ Nothing Alien Tech Used ----------------- None Achievements -------------- None Challenges ------------ None Game ------ Seed NeutronLinkedModule Manual? 0 Play Time 02:46:22 Cumulative 332.4 hours Start 2022.09.02 @ 20:49:18 End 2022.12.01 @ 10:25:58 Sessions 14 Manual Loads 0 Difficulty Rogue Special Mode None Game No. 417 Rogue 413 Adventurer 0 Explorer 4 Win Type - Total 5 Types 4/0/0/1/0/0/0/0/0 Lore% 77 Gallery% 86 Achievement% 63 Wizard Run 0 Options --------- ASCII 1 Keyboard 1 Movement Numpad Keybinds 0 Fullscreen 1 Font 36/Smallcaps Map View 76x50 Tactical HUD 1 Map Filters NONE Filters NONE Steam 1 RUN: 3dd76976-53a8-4d7f-a166-c05baeffb1ff